bitfinex-derivatives/quotes_BTCF0:USTF0_20241020
["timestamp","ask_amount","ask_price","bid_price","bid_amount"]
[1729434869556,0.03559551,68819.0,68817.0,0.072667]
[1729434869847,0.0319,68824.0,68817.0,0.072667]
[1729434869848,0.03559551,68818.0,68817.0,0.072667]
[1729434870035,0.15287326,68823.0,68817.0,0.072667]
[1729434870245,0.0319,68824.0,68817.0,0.072667]
[1729434870246,0.08021226,68822.0,68817.0,0.072667]
[1729434870445,0.08021226,68821.0,68817.0,0.072667]
[1729434871740,0.072662,68822.0,68817.0,0.072667]
[1729434871935,0.072662,68822.0,68818.0,0.072666]
[1729434873944,0.0319,68824.0,68820.0,0.3608]
[1729434874445,0.072661,68823.0,68820.0,0.3608]
[1729434875150,0.072665,68819.0,68814.0,0.43347]
[1729434875455,0.072666,68818.0,68814.0,0.43347]
[1729434875742,0.3608,68816.0,68799.0,0.0940096]
[1729434875948,0.07268,68806.0,68799.0,0.072685]
[1729434876247,0.0613,68805.0,68799.0,0.072685]
[1729434879143,0.08216375,68805.0,68799.0,0.072685]
[1729434880046,0.08216375,68805.0,68798.0,0.3608]
[1729434880349,0.3608,68800.0,68784.0,0.433501]
[1729434880548,0.072693,68793.0,68784.0,0.433501]
[1729434881242,0.072693,68793.0,68784.0,0.3608]
[1729434881445,0.072693,68793.0,68786.0,0.072699]
[1729434881647,0.0308,68799.0,68784.0,0.3608]
[1729434881835,0.072695,68791.0,68784.0,0.3608]
[1729434882242,0.072695,68791.0,68784.0,0.433501]
[1729434882437,0.072695,68791.0,68784.0,0.3608]
[1729434882641,0.072695,68791.0,68785.0,0.0727]
[1729434883044,0.072696,68790.0,68785.0,0.0727]
[1729434884561,0.072697,68789.0,68785.0,0.0727]
[1729434885449,0.072698,68788.0,68785.0,0.0727]
[1729434885753,0.0727,68786.0,68784.0,0.3608]
[1729434886046,0.072701,68785.0,68784.0,0.3608]
[1729434887144,0.0328,68793.0,68784.0,0.3608]
[1729434887145,0.0301,68792.0,68784.0,0.3608]
[1729434887346,0.0727,68786.0,68784.0,0.3608]
[1729434888148,0.072697,68789.0,68784.0,0.3608]
[1729434888338,0.072698,68788.0,68784.0,0.3608]
[1729434888748,0.072699,68787.0,68784.0,0.3608]
[1729434888949,0.17653374,68792.0,68784.0,0.3608]
[1729434889362,0.072699,68787.0,68784.0,0.3608]
[1729434889562,0.17653374,68792.0,68784.0,0.3608]
[1729434889741,0.072701,68785.0,68784.0,0.3608]
[1729434893266,0.09332892,68785.0,68784.0,0.3608]
[1729434895261,0.02062792,68785.0,68784.0,0.3608]
[1729434895459,0.0301,68792.0,68784.0,0.3608]
[1729434895460,0.072698,68788.0,68784.0,0.3608]
[1729434896060,0.072701,68785.0,68784.0,0.3608]
[1729434896451,0.05082851,68792.0,68784.0,0.3608]
[1729434896661,0.072698,68788.0,68784.0,0.3608]
[1729434896957,0.072699,68787.0,68784.0,0.3608]
[1729434897162,0.072701,68785.0,68784.0,0.3608]
[1729434898859,0.09350833,68785.0,68784.0,0.3608]
[1729434899455,0.072705,68782.0,68779.0,0.0327]
[1729434899655,0.072705,68781.0,68779.0,0.0327]
[1729434901256,0.3608,68790.0,68779.0,0.0327]
[1729434901664,0.03561303,68789.0,68779.0,0.0327]
[1729434901966,0.072706,68780.0,68779.0,0.0327]
[1729434902155,0.072704,68783.0,68779.0,0.0327]
[1729434902352,0.072704,68782.0,68779.0,0.0327]
[1729434903662,0.09406876,68782.0,68779.0,0.0327]
[1729434903862,0.02136476,68782.0,68779.0,0.0327]
[1729434904069,0.072702,68784.0,68779.0,0.0327]
[1729434904760,0.072702,68784.0,68780.0,0.3608]
[1729434905365,0.38215219,68790.0,68780.0,0.3608]
[1729434905668,0.035613,68789.0,68781.0,0.0311]
[1729434905969,0.108311,68788.0,68781.0,0.103805]
[1729434906160,0.035613,68787.0,68781.0,0.103805]
[1729434906360,0.035613,68786.0,68781.0,0.103805]
[1729434906559,0.035613,68785.0,68781.0,0.103805]
[1729434906766,0.035613,68784.0,68781.0,0.103805]
[1729434907078,0.035613,68783.0,68781.0,0.103805]
[1729434907262,0.035613,68782.0,68781.0,0.103805]
[1729434907567,0.02135219,68790.0,68785.0,0.0727]
[1729434907769,0.03561057,68789.0,68788.0,0.072698]
[1729434907962,0.36298107,68799.0,68789.0,0.072696]
[1729434907963,0.072687,68798.0,68789.0,0.072696]
[1729434908156,0.03560904,68797.0,68789.0,0.072696]
[1729434908472,0.072687,68798.0,68790.0,0.072695]
[1729434908473,0.03560904,68796.0,68790.0,0.072695]
[1729434908656,0.072687,68798.0,68791.0,0.072694]
[1729434908862,0.072687,68798.0,68794.0,0.3608]
[1729434909460,0.072688,68797.0,68794.0,0.3608]
[1729434910768,0.02335074,68799.0,68794.0,0.3608]
[1729434911062,0.02335074,68799.0,68787.0,0.3608]
[1729434912561,0.072693,68793.0,68787.0,0.3608]
[1729434912764,0.02335074,68799.0,68787.0,0.3608]
[1729434913369,0.072701,68785.0,68779.0,0.36264]
[1729434913666,0.072703,68784.0,68779.0,0.3608]
[1729434914366,1.5625,68793.0,68779.0,0.3608]
[1729434914367,0.072703,68783.0,68779.0,0.3608]
[1729434915069,0.0625,68793.0,68779.0,0.3608]
[1729434915070,0.072698,68788.0,68779.0,0.3608]
[1729434915272,0.072701,68786.0,68779.0,0.3608]
[1729434916063,0.072701,68785.0,68779.0,0.3608]
[1729434916467,0.072702,68784.0,68779.0,0.3608]
[1729434917674,0.072706,68780.0,68779.0,0.3608]
[1729434923370,0.09415037,68780.0,68779.0,0.3608]
[1729434923768,0.12976408,68780.0,68779.0,0.3608]
[1729434923975,0.17440434,68780.0,68779.0,0.3608]
[1729434924778,0.10169834,68780.0,68779.0,0.3608]
[1729434925075,0.05705848,68780.0,68779.0,0.3608]
[1729434926269,0.12976448,68780.0,68779.0,0.3608]
[1729434928173,0.05705848,68780.0,68775.0,0.072711]
[1729434928481,0.03561411,68779.0,68775.0,0.072711]
[1729434928778,0.03561411,68779.0,68771.0,0.36256]
[1729434929077,0.03561411,68779.0,68772.0,0.072714]
[1729434929078,0.03561411,68778.0,68772.0,0.072714]
[1729434929273,0.14074118,68784.0,68771.0,0.3608]
[1729434929465,0.072711,68776.0,68771.0,0.3608]
[1729434930071,0.072712,68775.0,68771.0,0.3608]
[1729434930268,0.072713,68774.0,68771.0,0.3608]
[1729434930773,0.072713,68774.0,68773.0,0.3608]
[1729434936181,0.0931692,68774.0,68773.0,0.3608]
[1729434937483,0.072718,68769.0,68765.0,0.435282]
[1729434937665,0.0304,68776.0,68765.0,0.435282]
[1729434937666,0.0304,68776.0,68765.0,0.3608]
[1729434937868,0.0305,68773.0,68761.0,0.004]
[1729434938071,0.072725,68762.0,68761.0,0.004]
[1729434938873,0.10834876,68762.0,68761.0,0.004]
[1729434939383,0.072725,68762.0,68761.0,0.004]
[1729434940772,0.10834891,68762.0,68761.0,0.004]
[1729434941178,0.072725,68762.0,68761.0,0.004]
[1729434942386,0.072729,68758.0,68757.0,0.3608]
[1729434942783,0.5537059,68758.0,68757.0,0.3608]
[1729434942987,0.509049,68758.0,68757.0,0.3608]
[1729434943181,0.072736,68752.0,68750.0,0.36256]
[1729434943380,0.11496,68751.0,68750.0,0.3608]
[1729434943581,0.11496,68751.0,68750.0,0.33318937]
[1729434944180,0.11496,68751.0,68745.0,0.072743]
[1729434945084,0.11496,68751.0,68746.0,0.072741]
[1729434945684,0.11496,68751.0,68745.0,0.072743]
[1729434945685,0.072739,68749.0,68745.0,0.072743]
[1729434946992,0.072742,68747.0,68744.0,0.072744]
[1729434947479,0.072742,68747.0,68745.0,0.072743]
[1729434949190,0.13601452,68751.0,68745.0,0.072743]
[1729434949496,0.072742,68746.0,68745.0,0.072743]
[1729434951198,0.072744,68744.0,68743.0,0.3608]
[1729434951894,0.072744,68744.0,68737.0,0.0975]
[1729434952113,0.07275,68738.0,68737.0,0.0975]
[1729434952999,1.5,68749.0,68742.0,0.072746]
[1729434953296,0.00218272,68752.0,68750.0,0.072737]
[1729434953485,0.00218272,68752.0,68751.0,0.3938]
[1729434955600,0.00218272,68752.0,68751.0,0.3608]
[1729434955601,0.07491872,68752.0,68751.0,0.3608]
[1729434956490,0.07491872,68752.0,68746.0,0.0956]
[1729434956688,0.072738,68751.0,68746.0,0.0956]
[1729434957394,0.00218272,68752.0,68746.0,0.0956]
[1729434957602,0.072739,68749.0,68746.0,0.0956]
[1729434958006,0.07274,68748.0,68746.0,0.0956]
[1729434958907,0.00218272,68752.0,68746.0,0.0956]
[1729434959204,0.072741,68747.0,68746.0,0.0956]
[1729434961209,0.07491872,68752.0,68746.0,0.0956]
[1729434961392,0.02353373,68752.0,68746.0,0.0956]
[1729434961594,0.00218272,68752.0,68746.0,0.0956]
[1729434961794,0.00218272,68752.0,68750.0,0.072738]
[1729434963700,0.02108472,68754.0,68750.0,0.072738]
[1729434963906,0.43353,68758.0,68746.0,0.0956]
[1729434964104,0.43353,68758.0,68749.0,0.072739]
[1729434964402,0.43353,68758.0,68753.0,0.3608]
[1729434964403,0.07273,68758.0,68753.0,0.3608]
[1729434964609,0.072726,68761.0,68753.0,0.3608]
[1729434964802,0.02112037,68761.0,68753.0,0.3608]
[1729434965000,0.115,68764.0,68753.0,0.3608]
[1729434965001,0.072728,68759.0,68753.0,0.3608]
[1729434967126,0.072729,68758.0,68753.0,0.3608]
[1729434967607,0.072733,68755.0,68753.0,0.3608]
[1729434969910,0.072727,68761.0,68753.0,0.3608]
[1729434970100,0.072728,68759.0,68753.0,0.3608]
[1729434972605,0.072723,68765.0,68754.0,0.072733]
[1729434972808,0.11676,68763.0,68755.0,0.072732]
[1729434973312,0.072723,68765.0,68755.0,0.072732]
[1729434974111,0.072723,68765.0,68756.0,0.072731]
[1729434974412,0.47756,68766.0,68753.0,0.3608]
[1729434974413,0.3608,68766.0,68757.0,0.072729]
[1729434974814,0.3608,68766.0,68753.0,0.3608]
[1729434974815,0.3608,68766.0,68759.0,0.072728]
[1729434975513,0.38201677,68766.0,68759.0,0.072728]
[1729434976909,0.3608,68766.0,68760.0,0.0647]
[1729434977112,0.00218184,68769.0,68760.0,0.0647]
[1729434977113,0.00218184,68769.0,68765.0,0.3608]
[1729434980320,0.02355599,68769.0,68765.0,0.3608]
[1729434980514,0.00218184,68769.0,68765.0,0.3608]
[1729434983921,0.07272,68768.0,68765.0,0.3608]
[1729434985615,0.072721,68766.0,68765.0,0.3608]
[1729434990923,0.02321067,68769.0,68765.0,0.3608]
[1729434991529,0.02321067,68769.0,68768.0,0.072719]
[1729434992810,0.02321067,68769.0,68765.0,0.3608]
[1729434994218,0.02321067,68769.0,68765.0,0.433521]
[1729434995824,0.02321067,68769.0,68759.0,0.00184]
[1729434995825,0.433521,68766.0,68759.0,0.00184]
[1729434996017,0.0318,68765.0,68748.0,0.3608]
[1729434996216,0.0318,68765.0,68749.0,0.072738]
[1729434996217,1.6132,68764.0,68749.0,0.072738]
[1729434996524,1.6132,68764.0,68748.0,0.3608]
[1729434996923,0.072734,68754.0,68748.0,0.3608]
[1729434998119,0.072734,68754.0,68749.0,0.072739]
[1729434999042,0.1132,68762.0,68752.0,0.072736]
[1729434999331,0.072729,68758.0,68756.0,0.3608]
[1729434999521,0.1132,68762.0,68756.0,0.3608]
[1729434999718,0.02046915,68762.0,68756.0,0.3608]
[1729434999916,1.50084,68764.0,68758.0,0.072729]
[1729435000130,1.5,68764.0,68758.0,0.072729]
[1729435000327,0.1132,68770.0,68760.0,0.072727]
[1729435000644,0.3608,68776.0,68760.0,0.072727]
[1729435000928,0.07489984,68769.0,68760.0,0.072727]
[1729435001834,0.072719,68768.0,68760.0,0.072727]
[1729435003018,0.02345281,68769.0,68760.0,0.072727]
[1729435003225,0.07272,68767.0,68760.0,0.072727]
[1729435003626,0.02345281,68769.0,68760.0,0.072727]
[1729435003828,0.072721,68766.0,68760.0,0.072727]
[1729435004224,0.072722,68765.0,68757.0,0.0636]
[1729435004731,0.072726,68761.0,68757.0,0.0636]
[1729435004933,0.072726,68761.0,68756.0,0.36264]
[1729435005137,0.072726,68761.0,68756.0,0.3608]
[1729435005636,0.072721,68766.0,68756.0,0.433531]
[1729435005819,0.072722,68765.0,68758.0,0.072729]
[1729435006520,0.072722,68765.0,68762.0,0.3608]
[1729435007728,0.072723,68764.0,68762.0,0.3608]
[1729435009331,0.02345281,68769.0,68762.0,0.3608]
[1729435009636,0.07272,68767.0,68762.0,0.3608]
[1729435009937,0.02345281,68769.0,68762.0,0.3608]
[1729435010129,0.02127097,68769.0,68762.0,0.3608]
[1729435010328,0.185915,68772.0,68763.0,0.0619]
[1729435011430,0.185915,68772.0,68766.0,0.07272]
[1729435011642,0.1132,68772.0,68769.0,0.3608]
[1729435012331,0.09342984,68772.0,68769.0,0.3608]
[1729435012840,0.02071484,68772.0,68769.0,0.3608]
[1729435013037,1.5008,68773.0,68769.0,0.3608]
[1729435013336,1.5,68773.0,68769.0,0.3608]
[1729435013543,0.0356197,68772.0,68769.0,0.3608]
[1729435013736,0.0356197,68771.0,68769.0,0.3608]
[1729435013942,0.0356197,68770.0,68769.0,0.3608]
[1729435017036,0.0356197,68770.0,68769.0,0.433518]
[1729435018336,1.52215702,68773.0,68772.0,0.072714]
[1729435018337,1.50076,68773.0,68772.0,0.072714]
[1729435018636,0.1132,68784.0,68779.0,0.072707]
[1729435018834,0.03561738,68783.0,68779.0,0.3608]
[1729435019035,1.5,68783.0,68782.0,0.072704]
[1729435019245,1.5,68783.0,68771.0,0.3608]
[1729435019246,0.072714,68772.0,68771.0,0.3608]
[1729435019443,0.0356148,68772.0,68771.0,0.3608]
[1729435020642,0.072712,68775.0,68771.0,0.3608]
[1729435021242,0.0954,68780.0,68771.0,0.3608]
[1729435021442,0.03561839,68779.0,68771.0,0.3608]
[1729435021646,0.072708,68779.0,68772.0,0.072714]
[1729435021847,0.072709,68778.0,68772.0,0.072714]
[1729435022342,0.11640504,68780.0,68771.0,0.3608]
[1729435022544,0.11640504,68780.0,68775.0,0.072711]
[1729435022848,0.08520504,68780.0,68775.0,0.072711]
[1729435023644,0.15791204,68780.0,68771.0,0.433515]
[1729435024232,0.15791204,68780.0,68771.0,0.3608]
[1729435024447,0.15791204,68780.0,68774.0,0.072712]
[1729435026244,0.072707,68779.0,68774.0,0.072712]
[1729435027443,0.08520504,68780.0,68771.0,0.3608]
[1729435027749,0.08520504,68780.0,68777.0,0.3608]
[1729435028534,0.10832403,68779.0,68777.0,0.3608]
[1729435028744,0.03561603,68778.0,68777.0,0.3608]
[1729435031135,0.03561603,68778.0,68774.0,0.3608]
[1729435031343,0.03561603,68777.0,68774.0,0.3608]
[1729435033750,0.03561603,68776.0,68774.0,0.3608]
[1729435034052,0.03561603,68775.0,68774.0,0.3608]
[1729435034249,0.03561603,68779.0,68774.0,0.3608]
[1729435034437,0.15791104,68780.0,68774.0,0.3608]
[1729435034438,0.03561603,68778.0,68774.0,0.3608]
[1729435034641,0.03561643,68777.0,68774.0,0.3608]
[1729435034837,0.15791104,68780.0,68774.0,0.3608]
[1729435034838,0.03561643,68776.0,68774.0,0.3608]
[1729435035036,0.15791104,68780.0,68774.0,0.3608]
[1729435035037,0.03561643,68775.0,68774.0,0.3608]
[1729435036653,0.072707,68779.0,68774.0,0.3608]
[1729435038147,0.08520504,68780.0,68774.0,0.3608]
[1729435038346,0.08520504,68780.0,68774.0,0.433512]
[1729435038966,0.08520504,68780.0,68776.0,0.07271]
[1729435039651,0.05410504,68780.0,68776.0,0.07271]
[1729435040448,0.05410504,68780.0,68774.0,0.3608]
[1729435042352,0.05410504,68780.0,68774.0,0.433511]
[1729435042655,0.05410504,68780.0,68775.0,0.072711]
[1729435043554,0.0356153,68779.0,68775.0,0.072711]
[1729435043741,0.0356153,68778.0,68775.0,0.072711]
[1729435043947,0.0356153,68777.0,68775.0,0.072711]
[1729435044146,0.0356153,68776.0,68775.0,0.072711]
[1729435047663,0.02100504,68780.0,68779.0,0.072707]
[1729435047879,0.03561425,68780.0,68779.0,0.072707]
[1729435048180,0.03561425,68780.0,68776.0,0.07271]
[1729435048366,0.02134644,68786.0,68778.0,0.072708]
[1729435048367,0.03561425,68779.0,68778.0,0.072708]
[1729435048774,0.03561169,68779.0,68776.0,0.0309]
[1729435049075,0.03561169,68778.0,68777.0,0.072709]
[1729435050367,0.03561169,68778.0,68776.0,0.0309]
[1729435050667,0.07271,68776.0,68774.0,0.3608]
[1729435050867,0.03561169,68775.0,68774.0,0.3608]
[1729435051673,0.07271,68776.0,68774.0,0.3608]
[1729435052079,0.072702,68784.0,68774.0,0.3608]
[1729435052278,0.072704,68782.0,68774.0,0.3608]
[1729435052580,0.07271,68776.0,68774.0,0.3608]
[1729435053381,0.0322,68785.0,68774.0,0.3608]
[1729435053674,0.072706,68781.0,68780.0,0.3608]
[1729435058084,0.0322,68785.0,68774.0,0.36256]
[1729435058386,0.072714,68773.0,68767.0,0.072719]
[1729435058573,0.3608,68781.0,68765.0,0.0311]
[1729435058772,0.072713,68774.0,68766.0,0.072721]
[1729435059872,0.3608,68781.0,68766.0,0.072721]
[1729435060072,0.072712,68775.0,68767.0,0.07272]
[1729435060273,0.072714,68773.0,68767.0,0.07272]
[1729435060677,0.072714,68772.0,68767.0,0.07272]
[1729435061287,0.3608,68781.0,68767.0,0.07272]
[1729435061475,0.072716,68771.0,68767.0,0.07272]
[1729435062484,0.38186951,68781.0,68765.0,0.0311]
[1729435062681,0.03561745,68780.0,68765.0,0.0311]
[1729435062885,0.3608,68775.0,68764.0,0.36268]
[1729435063183,0.433522,68765.0,68747.0,0.04332183]
[1729435063388,0.3608,68751.0,68742.0,0.0018]
[1729435063576,0.3608,68745.0,68735.0,0.3608]
[1729435063779,0.433544,68745.0,68740.0,0.072748]
[1729435065187,0.3608,68745.0,68742.0,0.072746]
[1729435065484,0.3608,68745.0,68743.0,0.0313]
[1729435066077,0.38135973,68745.0,68743.0,0.0313]
[1729435067192,0.02055973,68745.0,68743.0,0.0313]
[1729435067484,0.07274,68748.0,68743.0,0.0313]
[1729435067984,0.09418224,68748.0,68743.0,0.0313]
[1729435068994,0.072741,68747.0,68743.0,0.0313]
[1729435069576,0.072742,68746.0,68743.0,0.0313]
[1729435069983,0.4704,68751.0,68743.0,0.0313]
[1729435070183,0.072744,68745.0,68743.0,0.0313]
[1729435071389,0.1096,68750.0,68736.0,0.0318]
[1729435071691,0.072747,68742.0,68736.0,0.0318]
[1729435072486,0.072747,68742.0,68736.0,0.104552]
[1729435072687,0.0317,68749.0,68736.0,0.0318]
[1729435072891,0.072745,68743.0,68736.0,0.0318]
[1729435073390,0.072745,68743.0,68736.0,0.104552]
[1729435073889,0.3608,68744.0,68736.0,0.104552]
[1729435074193,0.072748,68740.0,68736.0,0.072752]
[1729435074391,0.072748,68740.0,68735.0,0.36264]
[1729435074694,0.3608,68744.0,68735.0,0.3608]
[1729435074895,0.072751,68737.0,68735.0,0.3608]
[1729435075887,0.3608,68744.0,68735.0,0.3608]
[1729435075888,0.072753,68736.0,68735.0,0.3608]
[1729435077286,0.072754,68735.0,68733.0,0.03]
[1729435078784,0.072755,68734.0,68733.0,0.03]
[1729435080591,0.38136608,68736.0,68733.0,0.03]
[1729435080985,0.3608,68736.0,68733.0,0.03]
[1729435081179,0.3608,68736.0,68735.0,0.072754]
[1729435081387,0.072737,68751.0,68735.0,1.033554]
[1729435081586,0.3608,68754.0,68751.0,0.072736]
[1729435081885,0.10964,68760.0,68752.0,0.0311]
[1729435082082,0.10964,68760.0,68757.0,0.07273]
[1729435082482,0.433524,68763.0,68757.0,0.07273]
[1729435082686,0.433524,68763.0,68752.0,0.0613]
[1729435082687,0.38187777,68763.0,68752.0,0.0613]
[1729435083084,0.3608,68770.0,68758.0,0.3608]
[1729435083281,0.47044,68770.0,68764.0,0.072723]
[1729435083487,0.3608,68770.0,68764.0,0.072723]
[1729435083805,0.38213151,68770.0,68764.0,0.072723]
[1729435083995,0.3608,68770.0,68764.0,0.072723]
[1729435087306,0.072705,68781.0,68777.0,0.072708]
[1729435087502,1.57346,68786.0,68777.0,0.3608]
[1729435087691,1.57346,68786.0,68783.0,0.072702]
[1729435087692,1.5727,68786.0,68783.0,0.072702]
[1729435088091,1.5,68786.0,68783.0,0.072702]
[1729435088295,1.52093514,68786.0,68783.0,0.072702]
[1729435088600,1.52093514,68786.0,68779.0,0.072706]
[1729435090202,1.52093514,68786.0,68778.0,0.032]
[1729435091701,1.52093514,68786.0,68782.0,0.072704]
[1729435092087,1.52093514,68786.0,68778.0,0.032]
[1729435092294,0.02093514,68786.0,68780.0,0.072705]
[1729435092491,0.072699,68787.0,68780.0,0.072705]
[1729435093403,0.09393493,68787.0,68780.0,0.072705]
[1729435094198,0.0727,68786.0,68780.0,0.072705]
[1729435094791,0.02123593,68787.0,68781.0,0.072704]
[1729435094992,1.50084,68790.0,68781.0,0.072704]
[1729435095194,1.5,68790.0,68781.0,0.072704]
[1729435095901,1.52118639,68790.0,68781.0,0.072704]
[1729435096400,1.59388239,68790.0,68783.0,0.072703]
[1729435096604,1.59388239,68790.0,68779.0,0.072707]
[1729435096804,1.59388239,68790.0,68783.0,0.072703]
[1729435097004,1.52118639,68790.0,68783.0,0.072703]
[1729435097203,0.072697,68789.0,68783.0,0.072703]
[1729435097804,1.59476239,68790.0,68783.0,0.072702]
[1729435097999,0.072697,68789.0,68783.0,0.072702]
[1729435098596,0.072697,68789.0,68784.0,0.072702]
[1729435098998,1.52194639,68790.0,68785.0,0.0727]
[1729435099205,1.52194639,68790.0,68779.0,0.072707]
[1729435099206,1.52118639,68790.0,68779.0,0.072707]
[1729435099407,1.52118639,68790.0,68778.0,0.032]
[1729435099704,0.02118639,68790.0,68778.0,0.032]
[1729435100004,0.3608,68791.0,68778.0,0.104708]
[1729435100198,0.3608,68791.0,68780.0,0.072705]
[1729435100396,0.38179777,68791.0,68780.0,0.072705]
[1729435101396,0.0727,68786.0,68780.0,0.072705]
[1729435101593,0.38179777,68791.0,68778.0,0.032]
[1729435101805,0.38179777,68791.0,68778.0,0.104708]
[1729435101806,0.072702,68785.0,68778.0,0.104708]
[1729435102000,0.072702,68785.0,68779.0,0.072707]
[1729435102200,0.072697,68789.0,68778.0,0.032]
[1729435102395,0.072699,68787.0,68782.0,0.072703]
[1729435102695,0.0727,68786.0,68778.0,0.032]
[1729435102906,0.0727,68786.0,68780.0,0.072706]
[1729435103312,0.38179777,68791.0,68778.0,0.032]
[1729435103699,0.072703,68783.0,68778.0,0.104707]
[1729435103900,0.38179777,68791.0,68777.0,0.3608]
[1729435103901,0.3608,68785.0,68777.0,0.3608]
[1729435104309,0.072708,68778.0,68777.0,0.3608]
[1729435105508,0.10956,68790.0,68777.0,0.3608]
[1729435105811,0.072702,68784.0,68781.0,0.072705]
[1729435106312,0.072703,68783.0,68781.0,0.072705]
[1729435106511,0.072703,68783.0,68777.0,0.3608]
[1729435106714,0.072703,68783.0,68778.0,0.072707]
[1729435107103,0.072703,68783.0,68777.0,0.3608]
[1729435107411,0.072703,68783.0,68779.0,0.072707]
[1729435108704,0.072698,68788.0,68779.0,0.072707]
[1729435108905,0.12642393,68789.0,68779.0,0.072707]
[1729435109316,0.12642393,68789.0,68781.0,0.072705]
[1729435110420,0.072702,68784.0,68781.0,0.072705]
[1729435114926,0.3608,68784.0,68777.0,0.3608]
[1729435115316,0.072707,68779.0,68777.0,0.3608]
[1729435115625,0.072707,68779.0,68776.0,0.07271]
[1729435119322,0.08978747,68779.0,68776.0,0.07271]
[1729435122416,0.08978747,68779.0,68771.0,0.3608]
[1729435122417,0.01708047,68779.0,68771.0,0.3608]
[1729435122615,0.072708,68778.0,68773.0,0.072713]
[1729435124923,0.37730375,68784.0,68773.0,0.072713]
[1729435125122,0.072711,68776.0,68773.0,0.072713]
[1729435128623,0.37730375,68784.0,68773.0,0.072713]
[1729435128825,0.072712,68774.0,68773.0,0.072713]
[1729435131932,0.072712,68774.0,68770.0,0.0316]
[1729435131933,0.072715,68771.0,68770.0,0.0316]
[1729435134636,0.10833323,68771.0,68770.0,0.0316]
[1729435135024,0.072715,68771.0,68770.0,0.0316]
[1729435137637,0.08948974,68771.0,68770.0,0.0316]
[1729435142036,0.01677474,68771.0,68770.0,0.104317]
[1729435142243,0.47036,68778.0,68776.0,0.07271]
[1729435142540,0.12607028,68778.0,68776.0,0.07271]
[1729435143841,0.01651028,68778.0,68776.0,0.07271]
[1729435144037,0.10956,68783.0,68770.0,0.0623]
[1729435144240,0.072707,68779.0,68773.0,0.072713]
[1729435145829,0.12626313,68783.0,68773.0,0.072713]
[1729435146037,0.072708,68778.0,68773.0,0.072713]
[1729435147238,0.072704,68782.0,68774.0,0.072712]
[1729435147438,0.01670313,68783.0,68774.0,0.072712]
[1729435147638,0.072706,68780.0,68774.0,0.072712]
[1729435148144,0.072707,68779.0,68774.0,0.072712]
[1729435149639,0.072709,68778.0,68770.0,0.135017]
[1729435150039,0.072709,68778.0,68770.0,0.0623]
[1729435150237,0.072709,68777.0,68772.0,0.072714]
[1729435150643,0.07271,68776.0,68772.0,0.072714]
[1729435153149,0.10952,68784.0,68770.0,0.0623]
[1729435153331,0.072711,68775.0,68770.0,0.0623]
[1729435153641,0.10952,68784.0,68770.0,0.0623]
[1729435153836,0.07271,68777.0,68773.0,0.072713]
[1729435154543,0.072715,68771.0,68770.0,0.0316]
[1729435155143,1.572715,68771.0,68770.0,0.0316]
[1729435155646,0.072711,68776.0,68770.0,0.0316]
[1729435156136,1.572712,68775.0,68770.0,0.0316]
[1729435156756,1.5,68775.0,68770.0,0.0316]
[1729435157044,0.01646748,68781.0,68775.0,0.072711]
[1729435157242,0.03561546,68780.0,68775.0,0.072711]
[1729435157538,1.53561546,68779.0,68775.0,0.072711]
[1729435157743,0.03561546,68778.0,68775.0,0.072711]
[1729435161744,0.072709,68778.0,68773.0,0.072713]
[1729435162140,1.50088,68779.0,68775.0,0.072711]
[1729435162342,1.5,68779.0,68775.0,0.072711]
[1729435162543,1.572707,68779.0,68775.0,0.072711]
[1729435165243,1.5,68779.0,68778.0,0.072708]
[1729435165957,1.5,68779.0,68777.0,0.3608]
[1729435166747,1.5,68779.0,68778.0,0.0318]
[1729435166954,1.5,68779.0,68778.0,0.104508]
[1729435167346,1.5,68779.0,68773.0,0.072713]
[1729435167553,0.072715,68772.0,68769.0,0.3608]
[1729435168254,0.0303,68778.0,68769.0,0.3608]
[1729435168255,0.072709,68777.0,68769.0,0.3608]
[1729435168445,0.072713,68774.0,68767.0,0.07272]
[1729435168655,0.072715,68772.0,68763.0,0.00218131]
[1729435168849,0.072715,68772.0,68764.0,0.072723]
[1729435169552,0.072715,68772.0,68767.0,0.072719]
[1729435170051,0.072715,68772.0,68763.0,0.00218131]
[1729435170052,0.0303,68778.0,68763.0,0.00218131]
[1729435170361,0.0303,68778.0,68768.0,0.072718]
[1729435170545,0.072713,68774.0,68768.0,0.072718]
[1729435170745,0.0303,68778.0,68768.0,0.072718]
[1729435170954,0.072713,68774.0,68768.0,0.072718]
[1729435172560,0.072714,68773.0,68768.0,0.072718]
[1729435173864,0.08909582,68773.0,68768.0,0.072718]
[1729435174248,0.072715,68772.0,68768.0,0.072718]
[1729435175246,0.072716,68771.0,68766.0,0.07272]
[1729435175448,0.37718182,68773.0,68763.0,0.00218131]
[1729435175759,0.072717,68770.0,68764.0,0.072723]
[1729435176647,0.3608,68772.0,68764.0,0.072723]
[1729435176844,0.072718,68769.0,68764.0,0.072723]
[1729435177054,0.3608,68772.0,68766.0,0.072721]
[1729435177261,0.3608,68772.0,68763.0,0.00218131]
[1729435177262,0.072718,68769.0,68763.0,0.00218131]
[1729435178254,0.072718,68769.0,68764.0,0.072723]
[1729435179261,0.3608,68772.0,68764.0,0.072723]
[1729435179262,0.072719,68768.0,68764.0,0.072723]
[1729435180451,0.3608,68772.0,68763.0,0.00218131]
[1729435180452,0.07272,68767.0,68763.0,0.00218131]
[1729435181058,0.3608,68772.0,68763.0,0.00218131]
[1729435181264,0.07272,68768.0,68763.0,0.00218131]
[1729435181563,0.072719,68768.0,68763.0,0.07490531]
[1729435182459,0.3608,68772.0,68763.0,0.07490531]